bitfinex/quotes_ETHUSD_20241106
["timestamp","ask_amount","ask_price","bid_price","bid_amount"]
[1730933395756,4.72195527,2734.0,2732.5,0.005]
[1730933395964,0.8186,2734.1,2732.5,0.005]
[1730933396967,4.72195527,2734.0,2732.5,0.005]
[1730933397166,3.0,2733.9,2732.5,0.005]
[1730933397366,0.77219553,2733.8,2732.5,0.005]
[1730933399326,3.0,2734.5,2732.6,0.8256]
[1730933400016,0.831,2734.0,2732.6,0.8256]
[1730933406120,2.831,2734.1,2732.6,0.8256]
[1730933406326,0.75529553,2734.0,2732.6,0.8256]
[1730933408347,0.75529553,2734.0,2732.7,0.07316458]
[1730933409414,0.75529553,2734.0,2732.6,0.8256]
[1730933410353,4.78825527,2734.6,2733.0,0.755]
[1730933411113,4.72195527,2734.6,2733.2,0.005]
[1730933411328,4.72195527,2734.6,2733.1,0.07315816]
[1730933411528,0.48551078,2734.5,2733.1,0.07315816]
[1730933411838,0.48551078,2734.5,2733.2,0.005]
[1730933412043,0.48551078,2734.5,2733.1,0.07315816]
[1730933412629,3.48551078,2734.5,2733.1,0.07315816]
[1730933413559,4.31405443,2734.3,2733.1,0.07315816]
[1730933413762,3.43140544,2734.2,2733.1,0.07315816]
[1730933414839,0.0663,2734.1,2733.1,0.07315816]
[1730933417531,3.43140544,2734.2,2733.1,0.07315816]
[1730933418767,4.31405443,2734.3,2733.1,0.07315816]
[1730933419079,0.1331525,2734.7,2733.2,0.7859]
[1730933420077,3.551911,2734.7,2733.2,0.7859]
[1730933420301,3.1331525,2734.7,2733.2,0.7859]
[1730933421074,4.31405443,2734.6,2733.2,0.7859]
[1730933421269,3.44472069,2734.5,2733.2,0.7859]
[1730933422193,3.44472069,2734.5,2733.2,0.6981]
[1730933423301,3.44472069,2734.5,2733.3,0.0731544]
[1730933423302,3.0,2734.1,2733.3,0.0731544]
[1730933423799,4.31405443,2734.2,2733.3,0.0731544]
[1730933424395,4.31405443,2734.2,2733.2,0.6981]
[1730933424571,0.43140544,2734.1,2733.2,0.6981]
[1730933424772,0.1331525,2734.7,2733.2,0.6981]
[1730933425075,0.1331525,2734.7,2733.7,0.7772]
[1730933425286,0.1331525,2734.7,2733.7,0.77355444]
[1730933425975,4.44720693,2734.7,2733.7,0.77355444]
[1730933426906,3.0,2734.6,2733.7,0.77355444]
[1730933427063,0.74472069,2734.5,2733.7,0.77355444]
[1730933427722,0.74472069,2734.5,2733.3,0.0731596]
[1730933427723,4.31405443,2734.3,2733.3,0.0731596]
[1730933427924,4.31405443,2734.3,2733.2,0.79714051]
[1730933428138,3.43140544,2734.2,2733.2,0.07316405]
[1730933429209,3.43140544,2734.2,2733.3,0.60946093]
[1730933429408,3.43140544,2734.2,2733.2,0.07316405]
[1730933429997,3.43140544,2734.2,2733.3,0.60948212]
[1730933430222,3.43140544,2734.2,2733.4,1.52697266]
[1730933430426,0.77454599,2734.1,2733.5,0.61078906]
[1730933430627,0.77454599,2734.1,2733.3,0.72397646]
[1730933430814,0.77454599,2734.1,2733.4,1.52698805]
[1730933431014,0.77454599,2734.1,2733.5,0.61079063]
[1730933431231,0.77454599,2734.1,2733.2,1.15912875]
[1730933431232,0.42059514,2734.0,2733.2,0.79714051]
[1730933431430,0.42059514,2734.0,2733.3,1.52702577]
[1730933431633,0.42059514,2734.0,2733.4,1.52702061]
[1730933431829,0.37059514,2734.0,2733.2,0.79714051]
[1730933432150,0.37059514,2734.0,2733.2,0.07316405]
[1730933432447,0.06440666,2733.9,2733.2,0.07316405]
[1730933432947,0.06978218,2733.8,2733.2,0.07316405]
[1730933433308,0.77454599,2734.1,2733.2,0.07316405]
[1730933433503,0.3774546,2734.0,2733.2,0.07316405]
[1730933433757,0.06982293,2733.9,2733.2,0.07316405]
[1730933437044,0.06982293,2733.9,2733.1,0.814]
[1730933439458,0.06982293,2733.9,2733.2,0.07316691]
[1730933442438,0.06982293,2733.9,2733.1,0.814]
[1730933442638,0.75886223,2733.9,2733.1,0.814]
[1730933445439,0.06982293,2733.9,2733.3,0.005]
[1730933445987,0.1331525,2734.7,2733.3,0.005]
[1730933446339,0.0633449,2734.6,2733.3,0.005]
[1730933446584,0.0633449,2734.6,2733.8,0.005]
[1730933447780,0.0633449,2734.6,2733.9,0.8187]
[1730933447937,0.42730619,2734.6,2733.9,0.8187]
[1730933450841,0.42730619,2734.6,2733.8,0.005]
[1730933451042,0.42730619,2734.6,2733.4,0.005]
[1730933451278,0.1331525,2734.7,2734.6,0.0366551]
[1730933453079,0.1331525,2734.7,2733.5,0.7526]
[1730933453080,3.1331525,2734.7,2733.5,0.7526]
[1730933453578,3.44311546,2734.4,2733.5,0.7526]
[1730933453784,0.38135897,2735.3,2732.6,0.01]
[1730933453785,0.73573663,2737.0,2736.8,0.7526]
[1730933454036,5.56533132,2738.3,2736.8,0.7576]
[1730933454198,0.4270324,2738.7,2737.0,0.005]
[1730933454388,0.3831525,2737.9,2737.0,0.005]
[1730933454824,0.3831525,2737.9,2737.1,0.07305093]
[1730933455233,0.3831525,2737.9,2737.3,0.7526]
[1730933455610,0.3831525,2737.9,2737.4,0.005]
[1730933455849,0.3831525,2737.9,2737.7,0.7526]
[1730933456622,4.29965796,2739.3,2737.7,0.7526]
[1730933457226,4.29965796,2739.3,2737.7,0.7626]
[1730933457434,4.29965796,2739.7,2738.0,0.7526]
[1730933457598,4.29965796,2739.7,2738.1,0.005]
[1730933458719,3.0,2739.5,2738.1,0.005]
[1730933458927,4.29965796,2739.3,2738.1,0.005]
[1730933459231,0.08266442,2738.2,2738.1,0.005]
[1730933459932,3.0,2739.5,2738.1,0.005]
[1730933460232,0.04619748,2738.5,2738.1,0.005]
[1730933461043,3.0,2739.5,2738.3,0.005]
[1730933461408,0.04470917,2738.5,2738.3,0.005]
[1730933461614,3.0,2739.5,2738.3,0.005]
[1730933462500,3.0,2739.5,2738.3,0.57442942]
[1730933462900,3.0,2739.5,2738.3,0.005]
[1730933464010,5.00827212,2738.6,2738.3,0.005]
[1730933464346,0.04603659,2738.5,2738.4,0.8358]
[1730933464510,5.00827212,2738.6,2738.4,0.8358]
[1730933464511,5.00827212,2738.6,2738.4,1.39522942]
[1730933464713,0.04603659,2738.5,2738.4,1.34522942]
[1730933464927,5.00827212,2738.6,2738.4,1.34522942]
[1730933465303,5.00827212,2738.6,2738.4,0.7758]
[1730933465650,0.04450204,2738.5,2738.4,0.7758]
[1730933466641,5.00827212,2738.6,2738.4,5.07545796]
[1730933466945,5.00827212,2738.6,2738.5,0.005]
[1730933467846,5.05018437,2738.6,2738.5,0.005]
[1730933470512,5.05018437,2738.6,2738.5,2.01551352]
[1730933470944,5.00827212,2738.6,2738.5,2.01551352]
[1730933471310,5.04899859,2738.6,2738.5,2.01551352]
[1730933471513,1.67084515,2738.6,2738.5,0.8278]
[1730933471739,0.83754515,2738.6,2738.5,1.52742899]
[1730933472044,0.79681868,2738.6,2738.5,2.5635576]
[1730933473328,0.79681868,2738.6,2738.5,2.5535576]
[1730933473651,0.79681868,2738.6,2738.5,1.43556275]
[1730933473850,0.79681868,2738.6,2738.5,2.5660576]
[1730933474057,0.322,2739.9,2738.5,2.5660576]
[1730933474393,0.322,2739.9,2738.9,0.005]
[1730933474679,0.04134994,2739.8,2738.9,0.63026275]
[1730933474963,0.04134994,2739.8,2739.1,0.005]
[1730933475657,0.04134994,2739.8,2739.3,0.005]
[1730933476589,0.04134994,2739.8,2739.5,0.55]
[1730933476745,0.322,2739.9,2739.5,0.55]
[1730933476946,0.03874895,2739.7,2739.6,0.07298018]
[1730933477153,0.322,2739.9,2739.4,0.7698]
[1730933477386,0.03874895,2739.7,2739.4,0.7698]
[1730933477573,0.0374979,2739.8,2739.5,0.07298893]
[1730933477882,99.00974564,2740.0,2739.4,0.7698]
[1730933478086,0.03745732,2739.7,2739.4,0.7698]
[1730933478301,0.05,2739.8,2739.5,0.55]
[1730933478446,0.03741673,2739.6,2739.5,1.14296517]
[1730933478646,0.05,2739.8,2739.5,1.14296517]
[1730933478883,0.03623687,2739.6,2739.5,1.14296517]
[1730933479088,0.05,2739.8,2739.5,1.14296517]
[1730933479295,0.03623687,2739.6,2739.5,0.59296517]
[1730933479589,0.05,2739.8,2739.7,0.005]
[1730933480787,0.05,2739.8,2739.6,0.005]
[1730933481081,0.05,2739.8,2739.5,0.005]
[1730933481287,0.05,2739.8,2739.7,0.59296517]
[1730933481487,0.05,2739.8,2739.7,1.36776517]
[1730933481807,99.00974564,2740.0,2739.9,0.005]
[1730933482269,99.00974564,2740.0,2738.9,0.47766075]
[1730933482270,99.00974564,2740.0,2739.5,0.005]
[1730933482474,99.00974564,2740.0,2739.3,0.7589]
[1730933482884,99.00974564,2740.0,2739.5,0.005]
[1730933483885,99.00974564,2740.0,2739.3,0.005]
[1730933484107,99.00974564,2740.0,2739.5,0.005]
[1730933485063,0.09559934,2739.9,2739.5,0.07798265]
[1730933485266,0.09559934,2739.9,2739.5,0.005]
[1730933485453,0.09559934,2739.9,2739.3,0.555]
[1730933485777,0.09559934,2739.9,2739.3,0.005]
[1730933487151,0.7984,2739.8,2738.7,0.07299071]
[1730933487489,0.09559934,2739.9,2738.4,0.005]
[1730933487490,0.805,2739.3,2738.4,0.005]
[1730933487699,3.0,2739.9,2737.9,0.07300838]
[1730933487700,0.805,2739.0,2737.9,0.005]
[1730933487898,0.805,2739.0,2737.7,0.07803244]
[1730933488068,0.805,2739.0,2737.9,0.005]
[1730933488251,0.805,2738.3,2736.8,0.005]
[1730933488567,0.805,2738.3,2736.9,0.005]
[1730933488568,0.01,2738.2,2736.9,0.005]
[1730933488751,0.01,2738.0,2736.7,0.005]
[1730933488959,0.7584,2737.9,2736.7,0.005]
[1730933489274,0.8156,2737.6,2736.7,0.005]
[1730933489693,0.8156,2737.6,2736.5,0.07807142]
[1730933489694,0.01,2737.5,2736.5,0.07807142]
[1730933489859,0.01,2737.5,2736.5,0.07807464]
[1730933490058,0.8156,2737.4,2736.5,0.07807464]
[1730933490255,0.01,2737.3,2736.5,0.005]
[1730933490452,0.7923,2737.2,2736.2,1.07313701]
[1730933490987,0.7923,2737.2,2736.5,0.005]
[1730933491149,0.7923,2737.2,2736.2,1.07313701]
[1730933491357,0.01,2737.1,2736.3,0.07308061]
[1730933491897,0.01,2737.1,2735.0,4.97694505]
[1730933491898,0.7656,2736.4,2735.0,4.97694505]
[1730933492271,0.7756,2736.3,2735.3,0.005]
[1730933492502,0.01,2736.1,2735.1,0.07311029]
[1730933492658,0.01,2735.7,2734.5,0.005]
[1730933492864,0.01,2735.7,2733.3,0.42213056]
[1730933492865,3.66054,2731.9,2731.1,2.53669983]
[1730933493207,0.01,2729.4,2728.3,0.78520152]
[1730933493569,0.01,2729.4,2728.4,0.07327903]
[1730933493769,0.01,2729.4,2727.9,0.01]
[1730933493976,0.01,2729.4,2728.5,0.35666593]
[1730933494190,0.01,2729.4,2729.3,0.35666593]
[1730933494364,0.01,2729.4,2727.9,0.01]
[1730933494715,0.01,2729.4,2729.3,0.34301935]
[1730933495085,0.01,2729.4,2728.7,0.33009066]
[1730933495410,0.01,2729.4,2728.0,0.01]
[1730933495575,0.01,2729.4,2728.1,0.33009066]
[1730933495758,0.01,2729.4,2728.6,0.33009066]
[1730933495958,0.01,2729.4,2728.0,0.01]
[1730933495959,0.8008,2730.5,2729.2,0.12930523]
[1730933496186,0.0731174,2730.4,2729.3,0.33009066]
[1730933496886,0.8008,2730.5,2729.4,0.07327006]
[1730933497196,0.01,2731.0,2729.3,0.33009066]
[1730933497197,0.0731174,2730.9,2729.3,0.33009066]
[1730933497376,0.0731174,2730.9,2729.4,0.34560733]
[1730933497573,0.0731174,2731.1,2729.5,0.0732527]
[1730933497833,0.0731174,2731.1,2729.6,0.34560733]
[1730933497971,0.0731174,2731.1,2729.8,0.01]
[1730933498173,0.0731174,2731.7,2729.9,1.16660733]
[1730933498369,0.4187244,2731.8,2730.3,0.01]
[1730933498596,0.0831174,2731.7,2730.3,0.34560733]
[1730933498803,0.0831174,2731.7,2728.8,0.01]
[1730933499119,0.0831174,2731.7,2729.8,0.01]
[1730933499407,0.0831174,2731.7,2729.8,0.33394066]
[1730933499557,0.48016648,2731.6,2729.9,0.32394066]
[1730933499761,0.0731174,2731.5,2730.0,0.0732409]
[1730933500103,0.0731174,2731.5,2729.8,0.01]
[1730933500396,0.0731174,2731.5,2729.8,0.33394066]
[1730933500605,0.0731174,2731.5,2729.8,0.24575529]
[1730933500773,0.42944579,2731.5,2729.9,0.07323509]
[1730933500961,0.42944579,2731.5,2729.3,0.31742521]
[1730933501167,0.42944579,2731.5,2729.2,3.12930523]
[1730933501168,0.01,2730.6,2729.2,0.12930523]
[1730933501369,0.8077,2730.4,2729.2,0.12930523]
[1730933501563,0.0731174,2730.3,2729.2,0.12930523]
[1730933503108,0.01,2731.0,2729.2,0.12930523]
[1730933503315,0.0831174,2731.0,2729.2,0.12930523]
[1730933503696,0.0731174,2731.0,2729.2,0.12930523]
[1730933503899,0.0831174,2731.0,2729.2,0.12930523]
[1730933504168,0.0731174,2731.0,2729.2,0.12930523]
[1730933504435,0.0731174,2731.2,2729.2,0.12930523]
[1730933504621,0.0731174,2731.2,2729.3,0.07324777]
[1730933505028,0.7797,2732.1,2729.9,4.72854737]
[1730933505241,0.7797,2732.9,2730.5,0.766]
[1730933505414,0.0731174,2732.8,2730.8,0.01]
[1730933505614,0.7797,2732.9,2731.0,0.01]
[1730933505918,0.0731174,2733.4,2731.6,0.766]
[1730933506127,0.7797,2733.8,2731.6,0.766]
[1730933506330,0.0731174,2733.7,2731.6,0.766]
[1730933506708,0.7797,2733.8,2731.6,0.766]
[1730933507037,0.7797,2733.8,2731.7,0.3876]
[1730933507647,0.7797,2733.8,2732.0,3.01]
[1730933507852,0.7797,2733.8,2732.1,0.07315854]
[1730933508198,0.0731174,2734.2,2732.1,0.07315854]
[1730933508446,0.0731174,2734.2,2732.1,1.53568554]
[1730933508739,0.0731174,2734.2,2732.2,0.45456855]
[1730933509035,0.0731174,2734.2,2732.3,0.0731586]
[1730933509236,0.0731174,2734.2,2732.2,0.45456855]
[1730933510018,0.01,2733.6,2731.7,0.3776]
[1730933510201,0.793,2733.5,2731.5,0.793]
[1730933510410,0.0731174,2733.4,2731.5,0.793]
[1730933510701,0.0731174,2733.4,2730.9,5.01954737]
[1730933510702,0.01,2732.9,2731.2,0.793]
[1730933510901,0.01,2733.1,2731.2,0.793]
[1730933511101,0.01,2733.1,2731.0,0.8215]
[1730933511102,0.01,2732.9,2731.0,0.8215]
[1730933511340,0.0831174,2732.9,2731.1,0.65730666]
[1730933511949,0.0731174,2732.9,2731.1,0.58410474]
[1730933512113,0.01,2732.7,2731.1,0.58410474]
[1730933512441,0.0731174,2732.7,2731.2,0.07321127]
[1730933512650,0.8256,2733.0,2731.2,0.07321127]
[1730933513006,0.0731174,2732.9,2731.1,0.58410474]
[1730933513204,0.8256,2733.0,2731.2,0.0731967]
[1730933513734,0.17494745,2732.9,2731.2,0.0731967]
[1730933514040,0.17494745,2732.9,2731.1,0.58410474]
[1730933514245,0.17494745,2732.9,2731.2,0.44056047]
[1730933515411,0.17494745,2732.9,2731.3,0.38152796]
[1730933515752,0.17494745,2732.9,2731.4,4.79173349]
[1730933516046,0.17494745,2732.9,2731.4,5.18609629]
[1730933516233,0.17494745,2732.9,2731.4,4.71854737]
[1730933516438,0.17494745,2732.9,2731.5,0.51000753]
[1730933516627,0.17494745,2732.9,2731.6,0.07318616]
[1730933516948,0.17494745,2732.9,2731.5,0.51000753]
[1730933517809,0.17494745,2732.9,2731.6,0.07318458]
[1730933518358,0.0731174,2732.8,2731.6,0.07318458]
[1730933518537,0.95774745,2732.7,2731.6,0.07318458]
[1730933518908,0.95774745,2732.7,2731.4,0.07319665]
[1730933520354,0.95774745,2732.7,2731.3,0.38152796]
[1730933520355,0.0731174,2732.6,2731.3,0.38152796]
[1730933520516,0.17494745,2732.5,2731.3,0.38152796]
[1730933520915,0.0731174,2732.4,2731.3,0.33152796]
[1730933521112,0.0731174,2732.4,2730.5,0.819]
[1730933521113,0.17494745,2732.3,2730.5,0.819]
[1730933521359,0.17494745,2732.3,2730.9,4.71854737]
[1730933521540,0.17494745,2732.3,2731.0,0.5450516]
[1730933521855,0.17494745,2732.3,2731.0,0.9394144]
[1730933522053,0.17494745,2732.3,2731.0,0.5450518]
[1730933522258,0.7926,2732.2,2731.0,0.47185474]
[1730933522470,0.17494745,2732.1,2730.7,0.3943628]
[1730933522757,0.17494745,2732.1,2730.8,0.07320987]
[1730933522933,0.17494745,2732.1,2730.8,0.46757267]
[1730933523950,0.17494745,2732.1,2730.9,0.3943628]
[1730933524156,0.17494745,2732.1,2730.6,0.8356]
[1730933524358,0.17494745,2732.1,2730.5,3.819]
[1730933524359,0.17494745,2732.1,2730.7,0.93303738]
[1730933524517,0.17494745,2732.1,2730.8,0.7926]
[1730933524718,0.17494745,2732.1,2730.8,1.1869628]
[1730933524913,0.17494745,2732.1,2730.9,0.07320839]
[1730933525119,0.17494745,2732.1,2730.9,4.79175579]
[1730933525319,0.17494745,2732.1,2731.0,0.59787186]
[1730933525562,0.17494745,2732.1,2731.1,0.07320616]
[1730933525760,0.17494745,2732.1,2731.2,0.07320838]
[1730933525931,0.17494745,2732.1,2730.9,0.07320452]
[1730933526116,0.17494745,2732.1,2731.0,0.3943628]
[1730933526653,0.17494745,2732.1,2731.1,0.07319769]
[1730933526968,0.17494745,2732.1,2731.1,0.47917451]
[1730933527161,0.17494745,2732.1,2730.8,0.3943628]
[1730933527162,0.17494745,2732.1,2731.2,0.07320769]
[1730933527875,0.10676837,2732.0,2730.9,4.71854737]
[1730933528019,0.17494745,2731.9,2730.9,4.71854737]
[1730933529382,0.17494745,2731.9,2731.0,0.07320247]
[1730933535976,0.17494745,2731.9,2731.0,3.07320247]
[1730933536163,0.17494745,2731.9,2731.1,0.77917498]
[1730933536481,0.17494745,2731.9,2731.2,0.07320144]
[1730933537949,0.10676837,2732.0,2731.2,0.07320144]
[1730933540455,0.10676837,2732.0,2731.1,0.77917498]
[1730933541490,0.10676837,2732.0,2731.3,3.0]
[1730933541693,0.10676837,2732.0,2731.3,3.80652376]
[1730933542400,0.7546,2731.9,2730.5,0.3943628]
[1730933542562,1.24,2731.3,2727.5,12.38549593]
[1730933542758,0.01,2730.8,2725.2,8.4091951]
[1730933543026,0.01,2725.7,2724.1,0.7546]
[1730933543298,1.14161814,2724.2,2723.7,0.9530525]
[1730933543503,1.50066602,2724.3,2723.8,4.31676931]
[1730933543504,0.76240865,2724.3,2723.8,4.31676931]
[1730933543655,1.50066602,2725.0,2724.2,4.31676931]
[1730933543865,1.89681729,2725.9,2724.9,4.31676931]
[1730933544164,1.89681729,2725.9,2724.3,0.25647605]
[1730933544165,1.89681729,2727.1,2725.6,4.31676931]
[1730933544372,2.67071729,2727.5,2725.7,0.22096604]
[1730933544588,1.25170579,2727.4,2726.1,4.31676931]
[1730933544794,1.89681729,2728.0,2726.6,4.31676931]
[1730933544997,0.7501,2728.2,2726.6,4.31676931]
[1730933544998,0.7501,2728.2,2726.7,0.96899331]
[1730933545588,0.7501,2728.2,2726.7,0.07331127]
[1730933545789,0.7501,2728.2,2726.4,4.72243537]
[1730933546091,0.7501,2728.2,2726.4,3.0]
[1730933546299,0.7501,2728.2,2726.5,0.07330881]
[1730933546486,0.7501,2728.2,2726.6,0.7506]
[1730933547098,0.7501,2728.2,2726.6,1.22245511]
[1730933547694,1.88769323,2728.7,2727.3,4.72243537]
[1730933547907,1.88769323,2728.7,2727.4,3.47224354]
[1730933548199,1.5642335,2729.5,2727.8,4.72243537]
[1730933548376,1.5642335,2729.5,2728.4,3.0]
[1730933548579,1.5642335,2729.5,2728.5,0.07326746]
[1730933548870,1.5642335,2729.5,2728.4,3.0]
[1730933548871,1.5642335,2729.5,2728.0,0.61684932]
[1730933549074,1.5642335,2729.5,2728.4,3.0]
[1730933549303,1.5642335,2729.5,2728.5,0.07326752]
[1730933549460,1.5642335,2729.5,2728.4,3.0]
[1730933549985,1.5642335,2729.5,2728.5,0.16]
[1730933550187,1.5642335,2729.5,2728.5,0.94824354]
[1730933550501,0.7951,2729.3,2728.5,0.16]
[1730933550661,0.09160968,2729.2,2728.5,0.16]
[1730933550861,0.10160968,2729.2,2728.5,0.16]
[1730933551472,0.10160968,2729.2,2727.4,3.47224354]
[1730933551473,0.01,2728.8,2727.4,3.47224354]
[1730933551827,0.01,2729.0,2727.5,0.47833482]
[1730933552094,0.01,2729.0,2727.6,0.39505784]
[1730933552304,0.01,2728.8,2727.7,0.07330103]
[1730933553595,0.01,2728.8,2727.8,0.07330106]
[1730933553896,0.01,2729.2,2727.4,0.47224354]
[1730933554101,0.10161419,2729.2,2727.5,0.51946789]
[1730933554398,0.10161419,2729.2,2727.5,0.92450174]
[1730933554603,0.01,2729.0,2727.5,0.92450174]
[1730933554803,0.0916224,2729.0,2727.6,0.07329071]
[1730933555296,0.01,2729.2,2727.6,0.07329071]
[1730933555497,0.10162236,2729.2,2727.6,0.07329071]
[1730933555709,0.01,2729.1,2727.6,0.07329306]
[1730933555884,0.01,2729.1,2727.7,0.40503385]
[1730933556090,0.01,2729.1,2727.8,0.07329532]
[1730933556491,0.10162236,2729.2,2727.7,0.40503385]
[1730933556784,0.10162236,2729.2,2727.8,0.07329107]
[1730933559099,0.10162236,2729.2,2727.8,0.47832492]
[1730933559300,0.10162236,2729.2,2727.8,0.07329107]
[1730933559604,0.10162236,2729.2,2727.5,0.51946789]
[1730933559605,0.10162236,2729.2,2727.6,0.07329623]
[1730933559784,0.01,2729.0,2727.6,0.47246737]
[1730933559991,0.8151,2729.3,2727.7,0.40503385]
[1730933560517,0.01,2729.1,2727.8,0.07329788]
[1730933560805,0.01,2729.1,2727.8,0.06772105]
[1730933561481,0.09162235,2729.2,2727.8,0.06772105]
[1730933562501,0.01,2729.1,2727.8,0.06772105]
[1730933563375,0.01,2729.1,2727.7,0.38820768]
[1730933563692,0.01,2729.1,2727.5,0.51946789]
[1730933563890,0.01,2728.9,2727.6,0.39917114]
[1730933565505,1.996,2728.8,2727.6,0.39917114]
[1730933565799,1.996,2728.8,2727.6,0.80280281]
[1730933566675,1.996,2728.8,2727.7,0.16]
[1730933567613,0.8212,2728.7,2727.7,0.16]
[1730933568607,0.8212,2728.7,2727.8,0.55]
[1730933568816,0.8212,2728.7,2727.8,0.95363167]
[1730933568972,1.996,2728.8,2727.8,0.95363167]
[1730933569174,1.996,2728.8,2728.0,3.55]
[1730933569370,1.996,2728.8,2728.2,0.55]
[1730933569617,1.996,2728.8,2728.1,1.27123837]
[1730933569921,1.996,2728.8,2728.2,0.55]
[1730933570408,1.996,2728.8,2728.1,0.8676067]
[1730933571518,1.996,2728.8,2728.1,1.27123837]
[1730933571830,1.996,2728.8,2728.2,0.42712384]
[1730933571984,1.996,2728.8,2728.1,0.8676067]
[1730933572191,1.996,2728.8,2728.0,3.0]
[1730933574885,1.996,2728.8,2728.0,3.0]
[1730933576329,1.996,2728.8,2728.1,0.55]
[1730933576491,1.996,2728.8,2728.1,0.95363167]
[1730933576698,1.996,2728.8,2728.3,0.55]
[1730933578805,1.996,2728.8,2728.0,3.0]
[1730933579013,1.996,2728.8,2727.9,0.42853051]
[1730933579189,1.996,2728.8,2728.0,3.0]
[1730933579391,1.996,2728.8,2728.0,3.8126067]
[1730933580035,1.996,2728.8,2728.0,4.21623837]
[1730933580599,1.996,2728.8,2728.1,0.40363167]
[1730933581197,1.996,2728.8,2728.2,0.55]
[1730933581535,1.996,2728.8,2728.1,0.55]
[1730933581832,1.996,2728.8,2728.3,3.55]
[1730933582029,1.996,2728.8,2728.4,0.82724354]
[1730933583149,1.996,2728.8,2728.4,0.72047517]
[1730933583325,0.75244341,2730.1,2728.5,0.7703]
[1730933583644,4.38045336,2734.3,2733.2,0.02]
[1730933583798,0.7782,2735.0,2733.4,0.55]
[1730933583999,0.7782,2735.0,2734.2,4.32013732]
[1730933584259,0.7782,2735.0,2734.2,1.41988944]
[1730933584410,0.7782,2735.0,2734.6,4.32013732]
[1730933585304,0.7782,2735.0,2734.6,5.12619307]
[1730933585527,0.7782,2735.5,2734.6,5.67619307]
[1730933585714,0.7782,2735.5,2734.7,3.55]
[1730933585909,0.7782,2735.5,2735.2,4.69417934]
[1730933586233,0.09138364,2737.4,2735.2,4.69417934]
[1730933586234,0.7926,2736.2,2735.3,0.07310643]
[1730933587037,0.7926,2736.2,2735.2,4.69417934]
[1730933587222,0.7926,2736.2,2734.9,0.9616594]
[1730933587425,0.7926,2736.2,2735.5,4.69417934]
[1730933587801,0.7926,2736.2,2735.6,1.33944263]
[1730933587996,0.7926,2736.2,2735.5,4.69417934]
[1730933588200,0.7926,2736.2,2735.6,1.41253308]
[1730933588404,0.7926,2736.2,2735.6,0.07309045]
[1730933588817,0.7926,2736.2,2735.1,0.07309567]
[1730933590103,0.7926,2736.2,2735.2,0.55]
[1730933590712,0.7926,2736.2,2735.5,4.69417934]
[1730933592569,0.7926,2736.2,2735.6,0.07309004]
[1730933593553,0.00358833,2736.1,2735.5,4.69417934]
[1730933594917,0.00358833,2736.1,2734.7,0.52226361]
[1730933595251,0.00358833,2736.1,2735.1,4.69417934]
[1730933595617,0.00358833,2736.1,2735.1,5.21644295]
[1730933596740,0.00358833,2736.1,2735.2,0.59536678]
[1730933597565,0.00358833,2736.1,2735.2,0.52226361]
[1730933598958,0.00358833,2736.1,2735.5,4.69417934]
[1730933600674,0.00358833,2736.1,2735.6,0.0730998]
[1730933603869,0.00358833,2735.9,2735.6,0.0730998]
[1730933604026,0.00358833,2735.7,2735.2,0.07311034]
[1730933604227,0.00358833,2735.7,2735.1,4.69417934]
[1730933604228,0.00358833,2735.5,2734.7,4.69417934]
[1730933604452,0.7725,2735.4,2734.7,4.69417934]
[1730933606287,0.7725,2735.4,2734.7,1.01952778]
[1730933606484,0.7725,2735.4,2734.2,0.55363524]
[1730933606485,0.00358833,2735.4,2735.1,4.69417934]
[1730933606659,0.00358833,2735.4,2734.7,4.69417934]
[1730933607055,0.00358833,2735.4,2734.7,5.24428919]
[1730933607261,0.00358833,2735.4,2734.8,0.6232313]
[1730933608370,0.00358833,2735.8,2734.8,0.55010985]
[1730933608596,0.00358833,2735.8,2735.1,4.69417934]
[1730933608801,0.00358833,2735.8,2735.1,5.28203919]
[1730933609004,0.00358833,2735.6,2734.5,0.58785985]
[1730933609210,0.00358833,2735.2,2734.5,5.28203919]
[1730933609392,0.8044,2735.1,2734.5,0.58785985]
[1730933609706,0.8044,2735.1,2734.5,5.28203919]
[1730933610004,0.8044,2735.1,2734.6,4.69417934]
[1730933610164,0.00358833,2734.9,2734.6,5.28203919]
[1730933610527,1.8541069,2738.5,2734.7,0.58785985]
[1730933610748,32.20530872,2740.0,2739.7,0.01]
[1730933610868,1.11380391,2743.1,2741.9,0.01]
[1730933611062,1.11380391,2743.1,2741.9,5.35942467]
[1730933611316,1.11380391,2743.1,2741.9,7.952502]
[1730933611514,1.11380391,2743.1,2741.9,10.23344467]
[1730933611661,1.11380391,2743.1,2741.9,9.86939534]
[1730933611858,0.021874,2743.0,2741.9,9.86939534]
[1730933612112,0.1909905,2742.0,2741.9,9.86939534]
[1730933612775,0.021874,2743.0,2742.7,0.01]
[1730933612973,0.021874,2743.0,2742.6,0.01]
[1730933613216,0.73954136,2743.1,2742.6,0.01]
[1730933613364,0.73954136,2743.1,2742.4,4.70417934]
[1730933613765,0.73954136,2743.1,2742.6,0.01]
[1730933614595,1.48686466,2743.2,2742.6,0.01]
[1730933615006,1.48686466,2743.2,2742.8,0.01]
[1730933615501,1.48686466,2743.2,2743.0,0.01]
[1730933615815,1.48686466,2743.2,2741.9,6.30939534]
[1730933616017,1.71610113,2743.2,2741.9,0.238216]
[1730933616317,0.03666825,2743.1,2740.5,0.7605]
[1730933616485,0.03666825,2743.1,2740.4,4.69417934]
[1730933616486,0.01,2742.4,2740.4,6.15232234]
[1730933616812,0.01,2741.9,2739.4,4.69417934]
[1730933617024,0.01,2741.7,2739.7,0.8055]
[1730933617177,0.01,2743.6,2741.3,4.69417934]
[1730933617377,0.03666825,2743.1,2741.3,5.31380534]
[1730933617572,0.03666825,2743.1,2741.3,0.619626]
[1730933617821,0.03666825,2743.1,2741.4,0.619626]
[1730933618111,0.7906,2743.0,2741.4,0.619626]
[1730933618310,0.03666825,2742.9,2741.4,0.619626]
[1730933618620,0.03666825,2742.9,2740.9,1.12589971]
[1730933619312,0.03666825,2742.9,2740.8,4.69417934]
[1730933619616,0.03666825,2742.9,2740.8,5.27007905]